Workbook

Sheet Sheet1
B1: Bridle Calculator Pro | G1: Version 1.0
B2: by Delbert Hall | O2: Go to Bridle Calculator Preference Page
AS3: Basket 1
B4: Beam Info | F4: Beam 1 | H4: Beam 2 | P4: Baskets | AQ4: Basket 1 | AS4: Basket Length | AT4: A | AU4: B | AW4: Total Leg (1) Length | AY4: BP below B1 | AZ4: BP above deck | BA4: BP below B2
B5: Height of Beam (in) | F5: 9" | H5: 9" | O5: Leg 1 | R5: Leg 2 | AF5: Beam 1 Height | AH5: =F8 -> 106'- 0" | AQ5: Base length | AR5: ELOH 1 | AS5: =IF(P7 ="Yes",AQ6+AS10 +AS10, AQ6+AS10) -> 184.75 | AT5: =SQRT(((AR10/2)*(AR10/2))+((AR13/2)*(AR13/2))) -> 14.94181423 | AU5: =(AS5-AR16)/2 -> 73.5 | AW5: =AR6+[3]!s2i(P14)+(D26*AS10) -> 196.7152151 | AY5: =SQRT((AW5*AW5)-[3]!s2i(F9)*[3]!s2i(F9)) -> 196.0634486 | AZ5: =[3]!s2i(F8)-AY5 -> 1075.936551 | BA5: =AY5-AL11 -> 196.0634486
B6: Width of Beam (in) | F6: 28" | H6: 28" | O6: Sling Length | P6: Split Y/N | R6: Sling Length | T6: Split Y/N | AF6: Beam 2 Height | AH6: =H8 -> 106'- 0" | AK6: 0 | AL6: =[3]!s2i(AH5) -> 1272 | AM6: 0 | AN6: =AL6/12 -> 106 | AQ6: =[3]!s2i(O7) -> 180 | AR6: =SQRT((AU5*AU5)-(AT5*AT5))+AW12 -> 74.34021512
B7: Circumference of Beam (in) | F7: =[3]!i2s((([3]!s2i(F5)+[3]!s2i(F6))*2),5,1) -> 74" | H7: =[3]!i2s((([3]!s2i(H5)+[3]!s2i(H6))*2),5,1) -> 74" | O7: 15'-0" | P7: Yes | R7: 15'-0" | T7: Yes | AF7: BP Height | AH7: =(Q21) -> 89' - 8" | AK7: =[3]!s2i(AH8) -> 16 | AL7: =[3]!s2i(AH7) -> 1076 | AM7: =AK7/12 -> 1.333333333 | AN7: =AL7/12 -> 89.66666667 | AW7: Total Leg (2) Length
B8: Height above Deck (ft - in) | F8: 106'- 0" | H8: 106'- 0" | AF8: BP from Beam 1 | AH8: =F9 -> 1'-4" | AK8: =[3]!s2i(AH9) -> 162 | AL8: =[3]!s2i(AH6) -> 1272 | AM8: =AK8/12 -> 13.5 | AN8: =AL8/12 -> 106 | AR8: Beam 1 | AW8: =SQRT(([3]!s2i(H9))*([3]!s2i(H9))+(BA5*BA5)) -> 244.4521955
B9: Distance from Apex to Beam (ft - in) | F9: 1'-4" | H9: =[3]!i2s(AK8-AK7) -> 12' - 2" | P9: Diameter of wire rope sling: | Q9: 3/8" | S9: Shackle Size: | T9: =IF(AI15=0.375,"5/8"&CHAR(34), "3/4"&CHAR(34)) -> 5/8" | AF9: Span | AH9: =G10 -> 13'-6" | AR9: Adjusted Beam Height | AS9: Shackle
B10: Span (ft - in) | G10: 13'-6" | AR10: =[3]!s2i(F5)+ AI15 -> 9.375 | AS10: =IF(AI15=0.375, 2.375, 3) -> 2.375 | AW10: Basket 1 | AX10: Basket 2
B11: Note: Typically, Leg 1 (Beam 1 to Apex) will be the short leg. | AL11: =AL6-[3]!s2i(AH6) -> 0 | AU11: H2 | AW11: Shackle/Spit | AX11: Shackle/split
Q12: Bridle Info | AF12: Y/N | AI12: Wire Rope Dia. | AR12: Adjusted Beam Width | AU12: =[3]!s2i(AH9)-[3]!s2i(AH8) -> 146 | AW12: =IF(P7="Yes",AS10,0) -> 2.375 | AX12: =IF(T7="Yes",AS10,0) -> 2.375
E13: Materials | AF13: Yes | AI13: 3/8" | AR13: =[3]!s2i(F6)+ AI15 -> 28.375
O14: Leg 1 Base Length | P14: 10'-0" | Q14: =IF(AG19<>0," Warning: Base length cannot be made!","") ->  | AF14: No | AI14: 1/2" | AS14: Basket 2
O15: Leg 1 Total Length | P15: =([3]!i2s(MROUND(AW5,1))) -> 16' - 5" | S15: Leg 2 Total Length | T15: =([3]!i2s(MROUND(AW16,1))) -> 20' - 4" | AI15: =[3]!s2i(Q9) -> 0.375 | AM15: Chain Needed | AR15: Total | AS15: Basket Length | AT15: A | AU15: B | AW15: Total Leg (2) Length
C16: Leg 1 | I16: Leg 2 | AM16: =AI19*12 -> 21.36198033 | AO16: =IF(AM16<=(AS10/2),0) -> FALSE | AR16: =AR10+AR13 -> 37.75 | AS16: =IF(T7 ="Yes",AQ20+AS10 +AS10, AQ20+AS10) -> 184.75 | AT16: =SQRT(((AR20/2)*(AR20/2))+((AR23/2)*(AR23/2))) -> 14.94181423 | AU16: =(AS16-AR26)/2 -> 73.5 | AW16: =SQRT(([3]!s2i(H9))*([3]!s2i(H9))+(BA5*BA5)) -> 244.4521955 | AX16: =AW16-AR29 -> 170.1119803
C17: Basket | D17: Leg | I17: Leg | J17: Basket | P17: Bridle Angle | Q17: =DEGREES(ATAN(AK7/AY5))+DEGREES(ATAN(AU12/BA5)) -> 41 | R17: degrees | S17: =IF(Q17>120,"Warning: Angle too great!","") ->  | AO17: =IF(AND(AM16>=(AS10/2),AM16<(AS10 + AS10/2)), "S") -> FALSE
I18: =AP26 -> 6 | K18: Links of STAC chain | AF18: Basket | AG18: Leg 1 | AI18: Leg 2 | AJ18: Basket | AM18: Chain Link Length | AO18: =IF(AM16>=(AS10 + AS10/2), (AM16-AS10)/AM19) -> 6.328993443 | AQ18: Basket 2 | AR18: Beam 2
B19: =IF('BC-Pref'!D11="Yes","2' Slings ","") -> 2' Slings | C19: =IF('BC-Pref'!D11="Yes",TRUNC(AF20/2),0) -> 0 | D19: =IF('BC-Pref'!D11="Yes",TRUNC(AG20/2),0) -> 0 | I19: =IF('BC-Pref'!D11="Yes",TRUNC(AI20/2),0) -> 1 | J19: =IF('BC-Pref'!D11="Yes",TRUNC(AJ20/2),0) -> 0 | K19: =IF('BC-Pref'!D11="Yes"," 2' Slings ","") -> 2' Slings | P19: Bridle Point | Q19: =([3]!i2s(MROUND(AY5,1))) -> 16' - 4" | R19: below Beam 1 | AE19: 2 | AF19: =AF20-(C19*2) -> 0.00 | AG19: =AG20-(D19*2) -> 0.00 | AI19: =IF(I19<>0,AI20-(I19*2)-(I19 *(AS10/12)), AI20-(I19*2)) -> 1.78 | AJ19: =AJ20-(J19*2) -> 0.00 | AM19: =('BC-Pref'!U5) -> 3 | AQ19: Base Length | AR19: Adjusted Beam Height
B20: =IF('BC-Pref'!D12="Yes","2.5' Slings ","") ->  | C20: =IF('BC-Pref'!D12="Yes",TRUNC(AF21/2.5),0) -> 0 | D20: =IF('BC-Pref'!D12="Yes",TRUNC(AG21/2.5),0) -> 0 | I20: =IF('BC-Pref'!D12="Yes",TRUNC(AI21/2.5),0) -> 0 | J20: =IF('BC-Pref'!D12="Yes",TRUNC(AJ21/2.5),0) -> 0 | K20: =IF('BC-Pref'!D12="Yes"," 2.5' Slings ","") ->  | AE20: 2.5 | AF20: =AF21-(P20*2.5) -> 0.00 | AG20: =AG21-(Q20*2.5) -> 0.00 | AI20: =IF(I20<>0,AI21-(I20*2.5)-(I20 *(AS10/12)), AI21-(I20*2.5)) -> 3.98 | AJ20: =AJ21-(J20*2.5) -> 0.00 | AO20: =AM16<=(AS10/2) -> FALSE | AP20: 0 | AQ20: =[3]!s2i(R7) -> 180 | AR20: =[3]!s2i(H5)+ AI15 -> 9.375
B21: 5' Slings | C21: =IF('BC-Pref'!D13="Yes",TRUNC(AF22/5),0) -> 1 | D21: =IF('BC-Pref'!D13="Yes",TRUNC(AG22/5),0) -> 0 | I21: =IF('BC-Pref'!D13="Yes",TRUNC(AI22/5),0) -> 0 | J21: =IF('BC-Pref'!D13="Yes",TRUNC(AJ22/5),0) -> 1 | K21: =IF('BC-Pref'!D13="Yes"," 5' Slings ","") -> 5' Slings | P21: Bridle Point | Q21: =([3]!i2s(MROUND(AZ5,1))) -> 89' - 8" | R21: above deck | AE21: 5 | AF21: =AF22-(C21*5) -> 0.00 | AG21: =AG22-(D21*5) -> 0.00 | AI21: =IF(I21<>0,AI22-(I21*5)-(I21 *(AS10/12)), AI22-(I21*5)) -> 3.98 | AJ21: =AJ22-(J21*5) -> 0.00 | AO21: =IF(AND(AM16>=(AS10/2)),AM16<(AS10 + AS10/2)) -> FALSE | AP21: S
B22: =IF('BC-Pref'!D14="Yes","10' Slings ","") -> 10' Slings | C22: =IF('BC-Pref'!D14="Yes",TRUNC(AF23/10),0) -> 1 | D22: =IF('BC-Pref'!D14="Yes",TRUNC(AG23/10),0) -> 1 | I22: =IF('BC-Pref'!D14="Yes",TRUNC(AI23/10),0) -> 1 | J22: =IF('BC-Pref'!D14="Yes",TRUNC(AJ23/10),0) -> 1 | K22: =IF('BC-Pref'!D14="Yes"," 10' Slings ","") -> 10' Slings | AE22: 10 | AF22: =AF23-(C22*10) -> 5.00 | AG22: =AG23-(D22*10) -> 0.00 | AI22: =IF(I22<>0,AI23-(I22*10)-(I22 *(AS10/12)), AI23-(I22*10)) -> 3.98 | AJ22: =AJ23-(J22*10) -> 5.00 | AO22: =(AM16>=(AS10 + AS10/2)) -> TRUE | AP22: =(AM16-AS10)/AM19 -> 6.328993443 | AR22: Adjusted Beam Width
B23: =IF('BC-Pref'!D15="Yes","20' Slings ","") -> 20' Slings | C23: =IF('BC-Pref'!D15="Yes",TRUNC(AF24/20),0) -> 0 | D23: =IF('BC-Pref'!D15="Yes",TRUNC(AG24/20),0) -> 0 | I23: =IF('BC-Pref'!D15="Yes",TRUNC(AI24/20),0) -> 0 | J23: =IF('BC-Pref'!D15="Yes",TRUNC(AJ24/20),0) -> 0 | K23: =IF('BC-Pref'!D15="Yes"," 20' Slings ","") -> 20' Slings | AE23: 20 | AF23: =AF24-(C23*20) -> 15.00 | AG23: =AG24-(D23*20) -> 10.00 | AI23: =IF(I23<>0,AI24-(I23*20)-(I23 *(AS10/12)), AI24-(I23*20)) -> 14.18 | AJ23: =AJ24-(J23*20) -> 15.00 | AR23: =[3]!s2i(H6)+ AI15 -> 28.375
B24: =IF('BC-Pref'!D16="Yes","30' Slings ","") -> 30' Slings | C24: =IF('BC-Pref'!D16="Yes",TRUNC(AF25/30),0) -> 0 | D24: =IF('BC-Pref'!D16="Yes",TRUNC(AG25/30),0) -> 0 | I24: =IF('BC-Pref'!D16="Yes",TRUNC(AI25/30),0) -> 0 | J24: =IF('BC-Pref'!D16="Yes",TRUNC(AJ25/30),0) -> 0 | K24: =IF('BC-Pref'!D16="Yes"," 30' Slings ","") -> 30' Slings | AE24: 30 | AF24: =AF25-(C24*30) -> 15.00 | AG24: =AG25-(D24*30) -> 10.00 | AI24: =IF(I24<>0,AI25-(I24*30)-(I24 *(AS10/12)), AI25-(I24*30)) -> 14.18 | AJ24: =AJ25-(J24*30) -> 15.00
B25: =IF('BC-Pref'!D17="Yes","50' Slings ","") -> 50' Slings | C25: =IF('BC-Pref'!D17="Yes",TRUNC(AF29/50),0) -> 0 | D25: =IF('BC-Pref'!D17="Yes",TRUNC(AF28/50),0) -> 0 | I25: =IF('BC-Pref'!D17="Yes",TRUNC(AF28/50),0) -> 0 | J25: =IF('BC-Pref'!D17="Yes",TRUNC(AG29/50),0) -> 0 | K25: =IF('BC-Pref'!D17="Yes"," 50' Slings ","") -> 50' Slings | AE25: 50 | AF25: =AF29-(C25*50) -> 15.00 | AG25: =AF28-(D25*50) -> 10.00 | AI25: =IF(I25<>0,AG28-(I25*50)-(I25*(AS10/12)), AG28-(I25*50)) -> 14.18 | AJ25: =AG29-(J25*50) -> 15.00 | AR25: Total
B26: Total Slings | C26: =SUM(C19:C25) -> 2 | D26: =SUM(D19:D25) -> 1 | I26: =SUM(I19:I25) -> 2 | J26: =SUM(J19:J25) -> 2 | K26: Total Slings | P26: Forces | AP26: =VLOOKUP(TRUE,AO20:AP22,2,) -> 6.328993443 | AR26: =AR20+AR23 -> 37.75
AF27: Leg1 | AG27: Leg 2
I28: Note: "S" indicates to add an additional shackle, but do not add any STAC chain. | Q28: Load | R28: 500 | S28: lb | AF28: =[3]!s2i(P14)/12 -> 10 | AG28: =(AX16)/12 -> 14.17599836 | AR28: ELOH 2
P29: Leg 1/Beam 1 | S29: Leg 2/Beam2 | AF29: =[3]!s2i(O7)/12 -> 15 | AG29: =[3]!s2i(R7)/12 -> 15 | AR29: =SQRT((AU16*AU16)-(AT16*AT16))+AX12 -> 74.34021512
P30: Tension on Leg | Q30: =R28*((AW5*AU12)/(AK7*BA5+AY5*AU12)) -> 452 | S30: =R28*((AW8*AK7)/(AK7*BA5+AY5*AU12)) -> 62 | T30: Tension on leg
P31: Vertical (Downward) Force on Beam | Q31: =(R28*AY5*AU12)/((AY5*AU12)+(BA5*AK7)) -> 451 | S31: =R28-Q31 -> 49 | T31: Vertical (Downward) Force on Beam
P32: Horizontal Force on Beam --> | Q32: =Q31*(AK7/AY5) -> 37 | S32: =S31*(AU12/BA5) -> 37 | T32: <-- Horizontal Force on Beam
R33: Horizonal forces on both beams must be equal.

Sheet BC-Pref
B1: Bridle Calculator - Preferences
G2: Go to Main Bridle Calculator Page
G4: STAC/Deck Chain Length
H5: Inside Length of Chain Link | I5: 3" | U5: =[3]!s2i(I5) -> 3
H8: Note: Be sure to include the inch symbol in your measurement above.
B9: Available Steel Slings
D10: Y/N
C11: 2' Steel | D11: Yes
C12: 2.5' Steel | D12: No
C13: 5' Steel | D13: Yes
C14: 10' Steel | D14: Yes
C15: 20' Steel | D15: Yes
C16: 30' Steel | D16: Yes
C17: 50' Steel | D17: Yes
